bitfinex/quotes_BTCUSD_20260311
["timestamp","ask_amount","ask_price","bid_price","bid_amount"]
[1773227953422,0.07565495,69628.0,69614.0,0.0002]
[1773227953628,0.07547445,69628.0,69614.0,0.0002]
[1773227953885,0.0755647,69623.0,69612.0,0.0001269]
[1773227954560,0.0755647,69623.0,69608.0,0.090069]
[1773227954760,0.04061986,69629.0,69600.0,0.001465]
[1773227954761,0.0755647,69619.0,69600.0,0.001465]
[1773227954965,0.03961625,69620.0,69600.0,0.000305]
[1773227954966,0.0755647,69617.0,69600.0,0.000305]
[1773227955144,0.00116,69618.0,69600.0,0.000481]
[1773227955145,0.0755647,69614.0,69600.0,0.000481]
[1773227955337,0.0755647,69617.0,69600.0,0.000481]
[1773227955540,0.0755647,69609.0,69600.0,0.000481]
[1773227955773,0.0755647,69607.0,69591.0,7.5e-05]
[1773227956401,0.07538421,69607.0,69591.0,0.00018673]
[1773227958599,0.07538421,69607.0,69591.0,0.00038673]
[1773227958765,0.00116,69608.0,69590.0,0.000656]
[1773227958766,0.07547446,69600.0,69590.0,0.000656]
[1773227958972,0.07663446,69600.0,69590.0,0.00075746]
[1773227959420,0.07547446,69599.0,69590.0,0.00075746]
[1773227959638,0.07547446,69599.0,69585.0,0.00116]
[1773227959845,0.07547446,69599.0,69587.0,0.00018675]
[1773227963767,0.00116,69604.0,69587.0,0.00018675]
[1773227964154,0.07547446,69621.0,69594.0,0.03961625]
[1773227964464,0.07547446,69621.0,69599.0,0.03961625]
[1773227964666,0.00116,69620.0,69599.0,0.03961625]
[1773227964873,0.07547446,69619.0,69599.0,0.03961625]
[1773227965489,0.07663446,69618.0,69599.0,0.03961625]
[1773227965786,0.07547446,69618.0,69598.0,0.00116]
[1773227965994,0.07547446,69616.0,69598.0,0.00116]
[1773227966605,0.07547446,69616.0,69598.0,0.001085]
[1773227966833,7.5e-05,69600.0,69598.0,0.001085]
[1773227966968,0.07547446,69616.0,69598.0,0.001085]
[1773227967179,7.5e-05,69609.0,69598.0,0.001085]
[1773227969438,7.5e-05,69609.0,69598.0,0.002085]
[1773227969642,7.5e-05,69609.0,69598.0,0.003085]
[1773227971440,7.5e-05,69609.0,69598.0,0.002085]
[1773227971642,7.5e-05,69609.0,69598.0,0.001085]
[1773227972871,7.5e-05,69609.0,69598.0,0.002085]
[1773227973265,0.00014501,69609.0,69598.0,0.002085]
[1773227973424,0.00014501,69609.0,69598.0,0.003085]
[1773227974318,8.93e-06,69613.0,69598.0,0.003085]
[1773227974517,6.641e-05,69612.0,69598.0,0.001085]
[1773227975930,6.641e-05,69612.0,69598.0,0.002085]
[1773227976131,6.641e-05,69612.0,69598.0,0.001085]
[1773227976603,6.641e-05,69612.0,69598.0,0.002085]
[1773227976763,6.641e-05,69612.0,69598.0,0.001085]
[1773227977982,6.641e-05,69612.0,69600.0,0.03961625]
[1773227978187,6.641e-05,69612.0,69601.0,0.02081361]
[1773227979202,0.00022001,69616.0,69601.0,0.02081361]
[1773227979408,4.835e-05,69617.0,69601.0,0.02081361]
[1773227979809,4.835e-05,69617.0,69601.0,0.02181361]
[1773227980237,0.07995035,69616.0,69601.0,0.001]
[1773227980416,0.07995035,69616.0,69600.0,7.5e-05]
[1773227980623,4.835e-05,69617.0,69604.0,7.5e-05]
[1773227980624,0.07995035,69611.0,69604.0,7.5e-05]
[1773227981044,0.07995035,69611.0,69609.0,6.607e-05]
[1773227981832,0.07995035,69611.0,69598.0,0.001085]
[1773227982055,0.03961625,69610.0,69598.0,0.001085]
[1773227982238,0.07801351,69609.0,69598.0,0.00119675]
[1773227982438,0.07801351,69609.0,69601.0,0.001]
[1773227982786,0.07801351,69609.0,69598.0,0.00119675]
[1773227982987,0.07801351,69609.0,69598.0,0.00219675]
[1773227983138,0.07801351,69609.0,69598.0,0.00119675]
[1773227986582,0.07783296,69609.0,69598.0,0.00119675]
[1773227988521,0.07783296,69609.0,69598.0,0.00139675]
[1773227988725,0.07805297,69609.0,69598.0,0.00139675]
[1773227989527,7.5e-05,69604.0,69598.0,0.00139675]
[1773227992269,7.5e-05,69604.0,69598.0,0.11591116]
[1773227993385,7.5e-05,69604.0,69599.0,0.11451441]
[1773227994938,0.00029501,69609.0,69599.0,0.11451441]
[1773227995185,0.00029501,69609.0,69601.0,0.11451441]
[1773227995390,0.00029501,69609.0,69600.0,0.11451441]
[1773227995791,0.00029501,69609.0,69601.0,0.11451441]
[1773227995952,0.00029501,69609.0,69600.0,0.11451441]
[1773227996153,0.00029501,69609.0,69600.0,0.11458941]
[1773227997211,0.00029501,69609.0,69600.0,0.11558941]
[1773227999602,0.08125582,69609.0,69600.0,0.11558941]
[1773228000970,0.08125582,69609.0,69600.0,0.11458941]
[1773228002369,0.08125582,69609.0,69600.0,0.11558941]
[1773228003237,0.08125582,69609.0,69600.0,0.11458941]
[1773228003657,0.08125582,69609.0,69600.0,0.11558941]
[1773228006442,0.08125582,69609.0,69600.0,0.11458941]
[1773228006717,0.08125582,69609.0,69600.0,0.11558941]
[1773228006938,0.08051582,69609.0,69600.0,0.11558941]
[1773228007137,0.08051582,69609.0,69600.0,0.11458941]
[1773228007910,0.08051582,69609.0,69590.0,0.0002]
[1773228008484,0.08051582,69609.0,69604.0,7.5e-05]
[1773228008665,0.08051582,69609.0,69600.0,0.001]
[1773228008868,0.08051582,69609.0,69590.0,0.03984998]
[1773228009121,0.00116,69608.0,69590.0,0.03984998]
[1773228009270,0.10279153,69608.0,69590.0,0.03984998]
[1773228009694,0.00116,69607.0,69590.0,0.03984998]
[1773228010095,0.00022001,69612.0,69597.0,0.03964998]
[1773228010698,0.10185154,69612.0,69600.0,0.0002]
[1773228010906,0.10060484,69612.0,69600.0,0.0002]
[1773228011065,0.00022001,69609.0,69600.0,0.0002]
[1773228011265,0.10106287,69608.0,69600.0,0.0002]
[1773228012119,0.10106287,69608.0,69593.0,0.0002]
[1773228012676,0.00116,69607.0,69593.0,0.0002]
[1773228012874,0.10115513,69606.0,69593.0,0.0002]
[1773228018254,7.5e-05,69600.0,69593.0,0.0002]
[1773228019027,0.10812904,69599.0,69591.0,0.000275]
[1773228019561,0.10812904,69599.0,69593.0,0.001]
[1773228019761,0.10812904,69599.0,69591.0,0.000275]
[1773228020064,0.10812904,69599.0,69590.0,0.0002]
[1773228020229,0.00116,69601.0,69590.0,0.0002]
[1773228020625,7.5e-05,69604.0,69590.0,0.0002]
[1773228020848,7.5e-05,69604.0,69591.0,0.00116]
[1773228022132,0.000312,69604.0,69591.0,0.00116]
[1773228024920,0.000312,69604.0,69591.0,0.00136]
[1773228025447,0.000312,69604.0,69596.0,7.5e-05]
[1773228025638,0.000312,69604.0,69591.0,0.00136]
[1773228026807,0.10884363,69603.0,69591.0,0.00136]
[1773228026980,0.10908063,69603.0,69591.0,0.00136]
[1773228027827,7.5e-05,69604.0,69591.0,0.00136]
[1773228028030,7.5e-05,69604.0,69591.0,0.00236]
[1773228028936,7.5e-05,69604.0,69591.0,0.00136]
[1773228029098,7.5e-05,69604.0,69591.0,0.00236]
[1773228031932,7.5e-05,69604.0,69591.0,0.002435]
[1773228032133,7.5e-05,69600.0,69591.0,0.002435]
[1773228032490,7.5e-05,69600.0,69591.0,0.001435]
[1773228032623,7.5e-05,69600.0,69591.0,0.002435]
[1773228033842,7.5e-05,69600.0,69591.0,0.001435]
[1773228034218,7.5e-05,69600.0,69591.0,0.002435]
[1773228035046,7.5e-05,69600.0,69591.0,0.001435]
[1773228035370,7.5e-05,69600.0,69591.0,0.003435]
[1773228035724,7.5e-05,69600.0,69591.0,0.002435]
[1773228035926,0.05482041,69600.0,69591.0,0.002435]
[1773228036961,0.05482041,69600.0,69591.0,0.003435]
[1773228037164,0.05482041,69600.0,69591.0,0.001435]
[1773228037343,0.05482041,69600.0,69591.0,0.002435]
[1773228037679,0.05482041,69600.0,69591.0,0.003435]
[1773228037847,0.05482041,69600.0,69591.0,0.001435]
[1773228038056,0.05482041,69600.0,69591.0,0.002435]
[1773228038558,0.05482041,69600.0,69591.0,0.001435]
[1773228038754,0.05482041,69600.0,69591.0,0.002435]
[1773228039985,0.05482041,69600.0,69591.0,0.001435]
[1773228040182,0.05482041,69600.0,69591.0,0.002435]
[1773228040344,0.05482041,69600.0,69591.0,0.001435]
[1773228040780,0.05482041,69600.0,69591.0,0.003435]
[1773228041033,0.05482041,69600.0,69591.0,0.002435]
[1773228041242,0.05482041,69600.0,69591.0,0.001435]
[1773228041395,0.05482041,69600.0,69591.0,0.002435]
[1773228041600,0.05482041,69600.0,69591.0,0.001435]
[1773228042006,0.05478041,69600.0,69591.0,0.002435]
[1773228042205,0.05478041,69600.0,69590.0,0.0002]
[1773228042994,0.05594041,69600.0,69590.0,0.0002]
[1773228043582,0.05594041,69600.0,69596.0,4e-05]
[1773228043787,0.05590541,69600.0,69596.0,4e-05]
[1773228044146,0.05500559,69595.0,69591.0,0.001]
[1773228044284,0.054825,69595.0,69590.0,0.0002]
[1773228048192,0.054825,69595.0,69587.0,0.001435]
[1773228048508,0.054825,69595.0,69587.0,0.0015044]
[1773228051975,0.054825,69595.0,69591.0,4e-05]
[1773228057105,0.054825,69595.0,69587.0,0.0015044]
[1773228058129,0.054825,69595.0,69591.0,0.0002]
[1773228060382,7.5e-05,69596.0,69591.0,0.0002]
[1773228065733,0.00029501,69596.0,69591.0,0.0002]
[1773228068216,0.01650592,69596.0,69591.0,0.0002]
[1773228071321,0.01650592,69596.0,69587.0,0.0147314]
[1773228071472,0.01650592,69596.0,69587.0,0.0135714]
[1773228074332,0.001235,69600.0,69587.0,0.0135714]
[1773228074898,0.01744591,69600.0,69587.0,0.0135714]
[1773228075600,0.01628591,69600.0,69591.0,7.5e-05]
[1773228076192,0.01628591,69600.0,69587.0,0.0096464]
[1773228079276,0.01628591,69600.0,69587.0,0.0098464]
[1773228079489,0.01650592,69600.0,69587.0,0.0098464]
[1773228082669,0.01650592,69600.0,69587.0,0.0101858]
[1773228082870,0.00029501,69600.0,69588.0,0.01554706]
[1773228083801,0.00029501,69600.0,69588.0,0.01588646]
[1773228085235,7.5e-05,69591.0,69588.0,0.01588646]
[1773228086461,7.5e-05,69591.0,69588.0,0.0003394]
[1773228086815,7.5e-05,69591.0,69587.0,0.00373084]
[1773228087019,7.5e-05,69591.0,69584.0,0.0002]
[1773228087359,7.5e-05,69591.0,69584.0,0.00057248]
[1773228087718,7.5e-05,69591.0,69583.0,0.000275]
[1773228087917,0.00044706,69591.0,69583.0,0.000275]
[1773228088118,0.00026644,69591.0,69583.0,0.000275]
[1773228089423,0.00026644,69591.0,69581.0,0.0003347]
[1773228089619,0.00026644,69591.0,69583.0,0.001]
[1773228090249,0.00026644,69591.0,69581.0,0.0003347]
[1773228090470,0.00026644,69591.0,69580.0,0.0002]
[1773228090471,0.00053148,69591.0,69580.0,0.0002]
[1773228090672,0.00053148,69591.0,69581.0,0.001]
[1773228091828,0.00053148,69591.0,69580.0,0.0002]
[1773228092023,0.00026644,69591.0,69580.0,0.0012]
[1773228092185,0.00026644,69591.0,69587.0,7.5e-05]
[1773228092391,0.00026644,69591.0,69580.0,0.0002]
[1773228092788,0.00026644,69591.0,69581.0,0.001]
[1773228093247,0.00026644,69591.0,69580.0,0.0002]
[1773228094646,8.584e-05,69591.0,69580.0,0.0002]
[1773228098738,0.00016084,69591.0,69583.0,7.5e-05]
[1773228102974,5.223e-05,69590.0,69578.0,7.5e-05]
[1773228103191,5.223e-05,69582.0,69565.0,7.5e-05]
[1773228103416,0.00126359,69581.0,69565.0,7.5e-05]
[1773228104167,0.00116,69581.0,69565.0,7.5e-05]
[1773228104337,0.03965814,69590.0,69567.0,0.01620921]
[1773228104540,0.00116,69589.0,69567.0,0.01620921]
[1773228104784,0.00017047,69588.0,69567.0,0.01620921]
[1773228105416,0.03945772,69580.0,69567.0,0.01620921]
[1773228105626,0.00116,69580.0,69567.0,0.01620921]
[1773228106994,7.5e-05,69574.0,69567.0,0.01620921]
[1773228107394,7.5e-05,69574.0,69567.0,0.01640921]
[1773228109033,7.5e-05,69578.0,69567.0,0.01640921]
[1773228109220,7.5e-05,69583.0,69567.0,0.01640921]
[1773228110127,7.5e-05,69583.0,69567.0,0.01756921]
[1773228114197,7.5e-05,69583.0,69570.0,7.5e-05]
[1773228115017,7.5e-05,69583.0,69574.0,7.5e-05]
[1773228116715,7.5e-05,69583.0,69570.0,7.5e-05]
[1773228116866,0.0001223,69582.0,69570.0,7.5e-05]
[1773228119252,0.00029501,69583.0,69570.0,7.5e-05]
[1773228119941,0.00043796,69583.0,69570.0,7.5e-05]
[1773228120336,0.03965814,69580.0,69570.0,7.5e-05]
[1773228120544,0.03965814,69580.0,69560.0,0.01144]
[1773228120750,0.00017934,69576.0,69560.0,0.01144]
[1773228121049,0.03965814,69580.0,69560.0,0.01144]
[1773228121050,0.00116,69575.0,69560.0,0.01144]
[1773228122234,0.00116,69575.0,69560.0,0.02821983]
[1773228123123,0.00116,69575.0,69560.0,0.01635854]
[1773228123331,0.00116,69575.0,69560.0,0.01187942]
[1773228123544,0.00116,69575.0,69560.0,0.00717813]
[1773228123741,0.00116,69575.0,69560.0,0.00558646]
[1773228124126,0.01242918,69575.0,69560.0,0.00558646]
[1773228125558,7.5e-05,69565.0,69560.0,0.00558646]
[1773228125738,7.5e-05,69565.0,69560.0,0.00578646]
[1773228126453,7.5e-05,69565.0,69553.0,0.0002]
[1773228126778,0.00026558,69562.0,69536.0,0.01676601]
[1773228127092,0.00026558,69562.0,69530.0,7.5e-05]
[1773228127093,4.053e-05,69560.0,69539.0,0.00084122]
[1773228127654,0.03965814,69550.0,69539.0,0.00084122]
[1773228127855,0.12241366,69549.0,69532.0,0.01803854]
[1773228128061,0.12233333,69549.0,69535.0,0.00018216]
[1773228128264,0.00013508,69548.0,69532.0,0.01687854]
[1773228128474,0.00013508,69541.0,69532.0,4.824e-05]
[1773228128643,0.00013508,69541.0,69523.0,0.01698074]
[1773228128851,0.10496808,69540.0,69526.0,0.00012857]
[1773228129061,0.04142573,69539.0,69526.0,0.00012857]
[1773228129273,0.10496808,69538.0,69526.0,0.00012857]
[1773228130137,0.10496808,69538.0,69526.0,0.00112857]
[1773228130490,0.10496808,69538.0,69515.0,0.0001459]
[1773228130684,0.10511213,69538.0,69518.0,0.0169187]
[1773228130884,0.10496808,69538.0,69518.0,0.0169187]
[1773228131088,0.10496808,69538.0,69526.0,0.001]
[1773228131275,0.00116,69537.0,69527.0,0.01697098]
[1773228131466,0.10496808,69538.0,69527.0,0.01697098]
[1773228131666,0.00116,69536.0,69527.0,0.01697098]
[1773228132171,0.00116,69536.0,69517.0,0.00016617]
[1773228132172,0.0013059,69536.0,69514.0,0.00116]
[1773228132371,0.0013059,69536.0,69521.0,0.01556272]
[1773228132372,0.0001459,69536.0,69521.0,0.01556272]
[1773228133739,0.0001459,69536.0,69528.0,0.01556272]
[1773228133935,0.00116,69536.0,69528.0,0.01556272]
[1773228136319,0.00116,69536.0,69527.0,0.0002]
[1773228138230,0.00116,69536.0,69519.0,0.01741919]
[1773228138604,0.00116,69536.0,69515.0,0.01741919]
[1773228138605,0.00015253,69535.0,69515.0,0.01741919]
[1773228138860,0.00015253,69535.0,69514.0,0.00011184]
[1773228139221,7.5e-05,69517.0,69514.0,0.00011184]
[1773228139578,0.05627398,69538.0,69515.0,0.01082501]
[1773228139782,0.00116,69537.0,69520.0,0.03973825]
[1773228139924,7.5e-05,69535.0,69520.0,0.03973825]
[1773228140772,7.5e-05,69535.0,69525.0,0.03973825]
[1773228140773,0.01284169,69534.0,69525.0,0.03973825]
[1773228140992,7.5e-05,69535.0,69520.0,0.04089825]
[1773228142998,7.5e-05,69535.0,69520.0,0.04189825]
[1773228143227,0.00029501,69535.0,69520.0,0.04189825]
[1773228143378,0.02645857,69535.0,69520.0,0.00216]
[1773228143576,0.02645857,69535.0,69520.0,0.04189825]
[1773228144002,0.02616356,69534.0,69514.0,0.00031184]
[1773228144201,0.00116,69533.0,69514.0,0.00031184]
[1773228144708,0.02732356,69533.0,69514.0,0.00031184]
[1773228144861,0.00116,69532.0,69514.0,0.00031184]
[1773228146003,0.00116,69531.0,69514.0,0.00131184]
[1773228146381,0.00116,69530.0,69514.0,0.00031184]
[1773228146721,0.00116,69530.0,69520.0,0.03973825]
[1773228147424,0.00116,69530.0,69520.0,0.53973825]
[1773228147850,0.00116,69530.0,69520.0,0.54073825]
[1773228148053,0.00029501,69535.0,69520.0,0.54073825]
[1773228148435,0.00029501,69535.0,69526.0,7.5e-05]
[1773228149783,0.00029501,69535.0,69526.0,0.500075]
[1773228152688,7.5e-05,69539.0,69526.0,0.500075]
[1773228152886,7.5e-05,69539.0,69529.0,0.03973825]
[1773228153296,0.00023,69550.0,69529.0,0.03973825]
[1773228153297,0.001235,69548.0,69529.0,0.03973825]
[1773228153494,7.5e-05,69548.0,69538.0,0.03973825]
[1773228153696,7.5e-05,69552.0,69538.0,0.3973825]
[1773228153913,7.5e-05,69552.0,69542.0,0.03973825]
[1773228154128,7.5e-05,69556.0,69542.0,0.02272935]
[1773228154624,0.00018659,69556.0,69542.0,0.02272935]
[1773228155497,0.00018659,69556.0,69542.0,0.02372935]
[1773228156363,0.00018659,69556.0,69542.0,0.02472935]
[1773228156784,0.00018659,69556.0,69542.0,0.02372935]
[1773228157408,0.00018659,69556.0,69542.0,0.02472935]
[1773228157678,0.00018659,69556.0,69542.0,0.02372935]
[1773228158056,0.00018659,69556.0,69542.0,0.02472935]
[1773228158702,0.00018659,69556.0,69542.0,0.02272935]
[1773228159119,0.00018659,69556.0,69543.0,7.5e-05]
[1773228160385,0.00018659,69556.0,69543.0,0.001075]
[1773228161214,7.5e-05,69561.0,69543.0,0.001075]
[1773228161215,7.5e-05,69561.0,69543.0,7.5e-05]
[1773228161433,7.5e-05,69561.0,69543.0,0.00118659]
[1773228161865,0.00022001,69556.0,69548.0,7.5e-05]
[1773228162288,0.00022001,69556.0,69549.0,0.00116]
[1773228163112,7.5e-05,69561.0,69549.0,0.00116]
[1773228165427,7.5e-05,69561.0,69549.0,0.00216]
[1773228165641,7.5e-05,69561.0,69549.0,0.00116]
[1773228169302,7.5e-05,69561.0,69552.0,7.5e-05]
[1773228171282,0.00029501,69561.0,69552.0,7.5e-05]
[1773228171570,7.5e-05,69565.0,69552.0,7.5e-05]
[1773228172634,0.02025204,69564.0,69552.0,0.001075]
[1773228173243,0.02025204,69564.0,69552.0,7.5e-05]
[1773228173649,7.5e-05,69565.0,69552.0,7.5e-05]
[1773228174986,0.00022001,69568.0,69552.0,7.5e-05]
[1773228175362,0.001235,69574.0,69552.0,7.5e-05]
[1773228175558,7.5e-05,69574.0,69560.0,0.03968644]
[1773228177880,0.02025204,69572.0,69560.0,0.03968644]
[1773228178080,0.02025204,69572.0,69561.0,7.5e-05]
[1773228179405,7.5e-05,69574.0,69561.0,7.5e-05]
[1773228179605,0.02078105,69570.0,69561.0,7.5e-05]
[1773228180252,0.02078105,69570.0,69556.0,7.5e-05]
[1773228180490,0.02025204,69568.0,69556.0,7.5e-05]
[1773228181512,0.02025204,69568.0,69558.0,0.03968644]
[1773228182888,0.02025204,69568.0,69558.0,0.04068644]
[1773228184531,0.02025204,69568.0,69558.0,0.03968644]
[1773228184740,0.02025204,69568.0,69558.0,0.04068644]
[1773228185240,0.02025204,69568.0,69558.0,0.04168644]
[1773228185500,0.02025204,69568.0,69558.0,0.04068644]
[1773228185668,0.02025204,69568.0,69558.0,0.03968644]
[1773228185830,7.5e-05,69565.0,69558.0,0.04068644]
[1773228186030,7.5e-05,69565.0,69558.0,0.03968644]
[1773228186511,7.5e-05,69565.0,69558.0,0.04068644]
[1773228186716,0.02032704,69565.0,69558.0,0.04068644]
[1773228187549,0.02032704,69565.0,69552.0,7.5e-05]
[1773228188163,0.02032704,69565.0,69558.0,0.001]
[1773228188745,0.02032704,69565.0,69552.0,7.5e-05]
[1773228189140,0.02032704,69565.0,69517.0,7.5e-05]
[1773228189141,0.02032704,69565.0,69545.0,0.17171566]
[1773228189356,0.02032704,69565.0,69546.0,0.00116]
[1773228189561,0.02032704,69565.0,69542.0,0.0002]
[1773228191732,0.02025204,69563.0,69542.0,0.0002]
[1773228193700,7.5e-05,69552.0,69542.0,0.0002]
[1773228193921,0.02141204,69551.0,69543.0,0.00038659]
[1773228194651,0.02025204,69551.0,69543.0,0.00038659]
[1773228197161,7.5e-05,69552.0,69543.0,0.00038659]
[1773228197798,7.5e-05,69556.0,69544.0,0.03970695]
[1773228197998,7.5e-05,69556.0,69545.0,0.01696644]
[1773228198352,7.5e-05,69556.0,69545.0,0.01812644]
[1773228198771,0.001,69552.0,69545.0,0.01812644]
[1773228199114,7.5e-05,69556.0,69545.0,0.01812644]
[1773228199959,0.00029501,69570.0,69546.0,0.03970695]
[1773228200171,0.01897224,69570.0,69552.0,0.01717967]
[1773228200385,0.01897224,69570.0,69555.0,0.03970695]
[1773228200588,0.01897224,69570.0,69553.0,0.00116]
[1773228203967,0.01897224,69570.0,69553.0,0.01846522]
[1773228204192,0.00029501,69570.0,69556.0,0.01730522]
[1773228204507,0.00029501,69565.0,69556.0,0.01730522]
[1773228204710,0.00029501,69565.0,69553.0,0.00116]
[1773228206319,0.01867723,69564.0,69548.0,7.5e-05]
[1773228206519,0.01983723,69564.0,69546.0,0.00116]
[1773228206770,0.01983723,69564.0,69542.0,0.0002]
[1773228207017,0.03970695,69560.0,69542.0,0.0002]
[1773228207182,0.01867723,69559.0,69542.0,0.0002]
[1773228207610,0.01867723,69559.0,69548.0,0.001]
[1773228208135,0.01867723,69559.0,69556.0,7.5e-05]
[1773228208338,0.01967723,69559.0,69542.0,0.0002]
[1773228208744,0.01867723,69559.0,69542.0,0.0002]
[1773228210055,0.01967723,69559.0,69542.0,0.0002]
[1773228210996,0.01867723,69559.0,69542.0,0.0002]
[1773228211132,0.01967723,69559.0,69542.0,0.0002]
[1773228211336,0.01967723,69559.0,69536.0,0.0001658]
[1773228212446,0.00011186,69560.0,69549.0,0.03970695]
[1773228212688,0.00011186,69560.0,69546.0,0.01825911]
[1773228213099,0.01878909,69560.0,69546.0,0.01825911]
[1773228213300,0.01878909,69560.0,69542.0,0.00116]
[1773228213499,0.01878909,69560.0,69543.0,0.01825911]
[1773228213930,0.00022001,69559.0,69543.0,0.01825911]
[1773228214067,0.00022001,69559.0,69549.0,0.03970695]
[1773228214268,0.00116,69558.0,69549.0,0.03970695]
[1773228216049,0.00022001,69559.0,69549.0,0.03970695]
[1773228216184,0.00116,69558.0,69549.0,0.03970695]
[1773228216794,0.00022001,69559.0,69549.0,0.03970695]
[1773228216996,0.00022001,69559.0,69550.0,0.01825911]
[1773228217495,0.00022001,69559.0,69549.0,0.03970695]
[1773228219561,0.00022001,69559.0,69550.0,0.01918411]
[1773228219760,7.5e-05,69552.0,69550.0,0.01918411]
[1773228219973,7.5e-05,69552.0,69550.0,0.01818411]
[1773228220919,7.5e-05,69552.0,69550.0,0.01918411]
[1773228221095,7.5e-05,69552.0,69550.0,0.01818411]
[1773228221458,7.5e-05,69552.0,69550.0,0.01918411]
[1773228223030,7.5e-05,69552.0,69550.0,0.02018411]
[1773228223164,7.5e-05,69552.0,69550.0,0.01918411]
[1773228223368,7.5e-05,69552.0,69550.0,0.01818411]
[1773228223567,7.5e-05,69552.0,69550.0,0.01918411]
[1773228223768,7.5e-05,69552.0,69550.0,0.01818411]
[1773228224175,7.5e-05,69552.0,69550.0,0.01918411]
[1773228224703,0.00022001,69559.0,69550.0,0.02018411]
[1773228225490,0.21564267,69583.0,69550.0,0.02018411]
[1773228225491,0.00029501,69565.0,69550.0,0.02018411]
[1773228225712,0.00029501,69565.0,69555.0,0.03970695]
[1773228225930,0.00029501,69565.0,69556.0,0.01825911]
[1773228227633,0.00029501,69565.0,69557.0,0.00116]
[1773228228788,0.00029501,69565.0,69556.0,0.00216]
[1773228229078,0.00029501,69565.0,69556.0,0.00316]
[1773228229240,0.00029501,69565.0,69555.0,0.00116]
[1773228229456,0.00029501,69565.0,69556.0,7.5e-05]
[1773228231625,0.0178673,69564.0,69556.0,0.01544215]
[1773228231801,0.0178673,69564.0,69552.0,7.5e-05]
[1773228233627,0.0188673,69564.0,69552.0,7.5e-05]
[1773228234911,0.0200273,69564.0,69552.0,7.5e-05]
[1773228235245,0.0188673,69564.0,69552.0,7.5e-05]
[1773228235426,0.0200273,69564.0,69552.0,7.5e-05]
[1773228237448,7.5e-05,69561.0,69552.0,7.5e-05]
[1773228238419,7.5e-05,69561.0,69553.0,0.01781451]
[1773228239357,7.5e-05,69561.0,69552.0,7.5e-05]
[1773228240130,7.5e-05,69561.0,69553.0,0.001]
[1773228240331,7.5e-05,69561.0,69553.0,0.002]
[1773228240554,0.01846895,69560.0,69552.0,0.000275]
[1773228240971,0.01846895,69560.0,69548.0,7.5e-05]
[1773228241180,0.0185708,69560.0,69548.0,7.5e-05]
[1773228241331,0.01846895,69558.0,69548.0,7.5e-05]
[1773228241741,0.01846895,69558.0,69548.0,0.03978195]
[1773228241948,0.01846895,69558.0,69552.0,0.002]
[1773228242383,0.01846895,69558.0,69548.0,7.5e-05]
[1773228243661,7.5e-05,69556.0,69548.0,7.5e-05]
[1773228244431,0.01846895,69555.0,69543.0,0.001235]
[1773228244828,0.01846895,69555.0,69543.0,7.5e-05]
[1773228246103,0.01846895,69555.0,69542.0,0.0002]
[1773228246332,0.01946895,69555.0,69542.0,0.0002]
[1773228246551,0.02046895,69555.0,69542.0,0.0002]
[1773228246927,0.002,69555.0,69543.0,0.01781451]
[1773228247714,0.001,69555.0,69543.0,0.01781451]
[1773228247916,7.5e-05,69556.0,69545.0,0.03970695]
[1773228248142,0.001,69555.0,69545.0,0.03970695]
[1773228248429,0.002,69555.0,69545.0,0.0002]
[1773228248570,7.5e-05,69556.0,69545.0,0.0002]
[1773228249529,0.001,69555.0,69545.0,0.0002]
[1773228249736,0.01846895,69555.0,69545.0,0.0002]
[1773228251214,7.5e-05,69548.0,69545.0,0.0002]
[1773228253595,7.5e-05,69552.0,69545.0,0.0002]
[1773228257623,7.5e-05,69552.0,69545.0,0.0006936]
[1773228261611,7.5e-05,69552.0,69545.0,0.01887717]
[1773228262613,0.01825799,69561.0,69545.0,0.01887717]
[1773228262614,7.5e-05,69561.0,69545.0,0.01887717]
[1773228262817,0.05223993,69569.0,69551.0,0.01818357]
[1773228263038,0.05223993,69569.0,69555.0,0.03969638]
[1773228263241,0.05223993,69569.0,69552.0,0.01934357]
[1773228263678,0.00116,69568.0,69552.0,0.01971177]
[1773228265190,0.00022001,69572.0,69555.0,0.03969638]
[1773228265444,0.01818299,69569.0,69560.0,0.03969638]
[1773228265616,0.01818299,69569.0,69560.0,0.03993918]
[1773228265890,0.01818299,69569.0,69555.0,0.0001254]
[1773228266107,0.01818299,69568.0,69555.0,0.0012854]
[1773228266556,0.01818299,69564.0,69561.0,7.5e-05]
[1773228266951,0.00022001,69565.0,69561.0,7.5e-05]
[1773228267833,0.00022001,69565.0,69562.0,0.01818357]
[1773228268049,0.00022001,69565.0,69561.0,7.5e-05]
[1773228268602,0.00022001,69572.0,69562.0,0.01818357]
[1773228270312,0.00022001,69572.0,69561.0,7.5e-05]
[1773228270511,0.00022001,69572.0,69561.0,0.001075]
[1773228270731,0.00022001,69572.0,69561.0,7.5e-05]
[1773228271177,0.00022001,69572.0,69562.0,0.001]
[1773228271387,0.00022001,69572.0,69561.0,7.5e-05]
[1773228271531,0.00022001,69572.0,69561.0,0.001075]
[1773228272567,0.00022001,69572.0,69561.0,0.01925857]
[1773228272766,0.00022001,69572.0,69561.0,0.001075]
[1773228273203,0.00022001,69572.0,69561.0,7.5e-05]
[1773228273533,0.00022001,69572.0,69561.0,0.001075]
[1773228273726,0.018403,69572.0,69561.0,0.001075]
[1773228274869,0.01818299,69569.0,69561.0,0.001075]
[1773228275240,0.01818299,69569.0,69559.0,0.03969638]
[1773228275791,0.01934299,69569.0,69559.0,0.03969638]
[1773228275986,0.00116,69568.0,69559.0,0.03969638]
[1773228276183,0.01934299,69568.0,69559.0,0.03969638]
[1773228276742,7.5e-05,69565.0,69559.0,0.03969638]
[1773228278635,7.5e-05,69565.0,69556.0,0.001235]
[1773228279228,0.01825799,69565.0,69556.0,0.001235]
[1773228279630,0.01825799,69565.0,69555.0,0.0001254]
[1773228280436,0.01825799,69565.0,69552.0,7.5e-05]
[1773228281112,0.01925799,69565.0,69552.0,7.5e-05]
[1773228281336,0.01825799,69565.0,69552.0,7.5e-05]
[1773228282669,0.01925799,69565.0,69552.0,7.5e-05]
[1773228283392,7.5e-05,69561.0,69552.0,7.5e-05]
[1773228283602,0.01941799,69561.0,69552.0,7.5e-05]
[1773228283753,0.01941799,69561.0,69549.0,0.0002]
[1773228283931,0.01948767,69561.0,69549.0,0.0002]
[1773228284155,0.01948767,69561.0,69542.0,0.0002]
[1773228286196,0.01999877,69561.0,69542.0,0.0002]
[1773228286588,0.01983877,69561.0,69550.0,0.04341682]
[1773228286791,0.00116,69560.0,69550.0,0.04341682]
[1773228287140,0.00116,69560.0,69547.0,0.01818357]
[1773228287141,0.01934299,69560.0,69542.0,0.0002]
[1773228287496,0.01934299,69560.0,69543.0,0.01825857]
[1773228287855,0.01985409,69560.0,69543.0,0.01825857]
[1773228288068,0.02085409,69560.0,69543.0,0.01825857]
[1773228288265,0.02085409,69560.0,69543.0,7.5e-05]
[1773228288836,0.02085409,69560.0,69543.0,0.000275]
[1773228289304,0.01985409,69560.0,69543.0,0.000275]
[1773228289803,0.02085409,69560.0,69543.0,0.000275]
[1773228290570,7.5e-05,69552.0,69543.0,0.000275]
[1773228290972,0.000427,69552.0,69543.0,0.000275]